Cogmind - Beta 9.6 @@@ ROGUE MODE // 2020.05.19 @ 10:27:43 Player: Vectis Result: Destroyed by as-37269 with Assembled Heavy Rifle Performance ------------- Evolutions (1) 500 Regions Visited (5) 1000 Robots Destroyed (21) 105 Value Destroyed (319) 319 Prototype IDs (24) 480 Alien Tech Used (0) 0 Bonus (242) 242 TOTAL SCORE: 2646 Bonus ------- Follower Combat Kills 140 Aligned with FarCom 300 Friendly Fire -198 Cogmind --------- Core Integrity 0/400 Matter 300/300 Energy 100/100 System Corruption 2% Temperature Cool (0) Movement Core (50) Location -9/Exiles Parts ------- > --- POWER (1) -------- (None) > --- PROPULSION (4) --- (None) > --- UTILITY (2) ------ (None) > --- WEAPON (2) ------- (None) > --- INVENTORY (4) ---- Light Ion Engine Propulsion Shielding Shotgun Light Cannon Peak State ------------ > --- POWER ------------ Light Deuterium Engine > --- PROPULSION ------- Wheel Compact Wheel Flight Unit Flight Unit > --- UTILITY ---------- Small Storage Unit Improved Weapon Shielding > --- WEAPON ----------- Pulse Rifle Light Cannon > --- INVENTORY -------- Light Ion Engine Flight Unit Flight Unit Shotgun [Rating: 15] Favorites ----------- Power Light Deuterium Engine Engine Light Deuterium Engine Propulsion Flight Unit Leg Aluminum Leg Wheel Wheel Flight Unit Flight Unit Utility Small Storage Unit Device Sensor Array Storage Small Storage Unit Protection Improved Weapon Shielding Weapon Light Cannon Energy Gun Pulse Rifle Energy Cannon Beam Cannon Ballistic Gun Assault Rifle Ballistic Cannon Light Cannon Impact Weapon Hammer Build | -11 -10 -10 -9 -9 -9 ------- Run | Scr Mat Min Mat Min Exi Slots Evolved 2 | . . . 2 . . Power . | . . . . . . Propulsion 2 | . . . 2 . . Utility . | . . . . . . Weapon . | . . . . . . Parts Attached 38 | 7 7 6 13 3 2 Power 5 | 1 1 2 . 1 . Engine 5 | 1 1 2 . 1 . Core . | . . . . . . Reactor . | . . . . . . Propulsion 13 | 2 2 . 6 2 1 Treads . | . . . . . . Leg 2 | 2 . . . . . Wheel 2 | . 2 . . . . Hover . | . . . . . . Flight 9 | . . . 6 2 1 Utility 3 | 1 . 1 1 . . Device 1 | . . . 1 . . Storage 1 | 1 . . . . . Processor . | . . . . . . Hackware . | . . . . . . Protection 1 | . . 1 . . . Artifact . | . . . . . . Weapon 17 | 3 4 3 6 . 1 Energy Gun 5 | 2 2 1 . . . Energy Cannon 1 | . . 1 . . . Ballistic Gun 3 | 1 2 . . . . Ballistic Cannon 4 | . . 1 3 . . Launcher . | . . . . . . Special Weapon . | . . . . . . Impact Weapon 4 | . . . 3 . 1 Slashing Weapon . | . . . . . . Piercing Weapon . | . . . . . . Special Melee Weapon . | . . . . . . Unidentified Prototypes . | . . . . . . Parts Lost 14 | . 3 . . 3 8 Power 1 | . . . . 1 . Propulsion 8 | . 2 . . 1 5 Utility 2 | . . . . . 2 Weapon 3 | . 1 . . 1 1 Highest Loss Streak 8 | . 3 . . 2 8 Average Slot Usage (%) 90 | . 84 93 97 87 72 Engine 12 | . 14 14 11 9 10 Leg 2 | . 18 . . . . Wheel 10 | . 9 28 . . . Flight 22 | . . . 44 44 39 Device 5 | . . . 8 11 10 Storage 12 | . 14 14 11 11 10 Protection 2 | . . 8 . . . Energy Gun 9 | . 23 8 11 3 . Energy Cannon 1 | . . 3 . . . Ballistic Gun 2 | . 4 6 . . . Ballistic Cannon 6 | . . 10 6 7 . Impact Weapon 1 | . . . 4 . 2 Naked Turns 6 | . . . . . 6 Heaviest Build 17 | 11 12 17 16 16 17 Greatest Support 26 | 20 26 26 17 17 17 Greatest Overweight (x) 4 | . . . 4 4 1 Average Overweight (x) . | . . . . . . Largest Inventory Capacity 6 | 6 6 6 6 6 6 Average Capacity 5 | 5 6 6 6 6 5 Most Carried 6 | 4 6 6 6 6 6 Average Carried 5 | 3 4 5 5 5 5 Final Capacity 6 | 6 6 6 6 6 4 Final Carried 6 | 4 6 6 6 6 4 Class Distribution -------------------- 57% | Mutant 33% | Scavenger-Sprinter 7% | Scavenger-Mutant Dominant Class ---------------- Mutant | -10/Materials Mutant | -10/Mines Scavenger-Sprinter | -9/Materials Scavenger-Sprinter | -9/Mines Scavenger-Sprinter | -9/Exiles Resources | -11 -10 -10 -9 -9 -9 ----------- Run | Scr Mat Min Mat Min Exi Matter Collected 704 | 318 30 139 124 93 . Remotely . | . . . . . . Salvage Created 603 | 199 78 37 281 8 . Parts 41 | 14 4 6 17 . . Haulers Intercepted 1 | . . . 1 . . Recyclers Shooed 1 | 1 . . . . . Parts Field Recycled . | . . . . . . Retrieved Matter . | . . . . . . Parts Self-Destructed . | . . . . . . Prevented . | . . . . . . Kills | -11 -10 -10 -9 -9 -9 ------- Run | Scr Mat Min Mat Min Exi Combat Hostiles Destroyed 9 | . 2 3 3 1 . Guns 6 | . 2 3 1 . . Cannons 3 | . . . 2 1 . Classes Destroyed 9 | 3 1 1 3 1 . Worker 1 | 1 . . . . . Tunneler 5 | 5 . . . . . Hauler 1 | . . . 1 . . Recycler 2 | 1 . . 1 . . Watcher 3 | . . . 3 . . Swarmer 3 | . . 3 . . . Grunt 4 | . 2 . 2 . . Sentry 1 | . . . 1 . . Assembled 1 | . . . . 1 . Best Kill Streak 7 | 7 2 3 6 1 . Combat Bots Only 3 | . 2 3 2 1 . Max Kills in Single Turn 2 | 1 1 1 2 1 . Gunslinging . | . . . . . . Exploded . | . . . . . . Melee . | . . . . . . Uniques/NPCs Destroyed . | . . . . . . Combat | -11 -10 -10 -9 -9 -9 -------- Run | Scr Mat Min Mat Min Exi Damage Taken 1461 | . 361 102 . 276 722 Core 490 | . 77 10 . 42 361 Absorbed by Shields . | . . . . . . Core Remaining (%) 82 | 100 . 65 . . . Volleys Fired 53 | 16 12 7 11 7 . Largest 2 | 2 2 2 2 2 . Hottest 98 | 60 80 43 98 98 . Shots Fired 105 | 32 24 14 21 14 . Gun 87 | 32 24 14 10 7 . Cannon 18 | . . . 11 7 . Launcher . | . . . . . . Special . | . . . . . . Kinetic 48 | 16 . 14 11 7 . Thermal 20 | . 3 . 10 7 . Explosive . | . . . . . . Electromagnetic 37 | 16 21 . . . . Robot Hit Streak 7 | 6 6 3 7 2 . Robot Miss Streak 3 | 2 3 3 1 2 . Penetration Max . | . . . . . . Secondary Targets 2 | . 1 1 . . . Max Gunslinging Chain 1 | . 1 1 . . . Shots Hit Robots 65 | 21 15 8 14 6 1 Core Hits 31 | 8 4 3 8 2 6 Critical Hits 1 | 1 . . . . . Critical Kills 1 | 1 . . . . . Critical Parts Destroyed . | . . . . . . Melee Attacks 39 | . . . 38 . 1 Impact 39 | . . . 38 . 1 Slashing . | . . . . . . Piercing . | . . . . . . Sneak Attacks 1 | . . . . . 1 Combat Hostiles . | . . . . . . Follow-up Attacks . | . . . . . . Damage Inflicted 973 | 232 238 85 260 64 94 Guns 668 | 232 149 85 153 49 . Cannons 122 | . . . 107 15 . Explosions 89 | . 89 . . . . Melee 66 | . . . . . 66 Ramming 28 | . . . . . 28 Kinetic 311 | 104 . 85 107 15 . Thermal 301 | . 99 . 153 49 . Explosive . | . . . . . . Electromagnetic 267 | 128 139 . . . . Impact 66 | . . . . . 66 Slashing . | . . . . . . Piercing . | . . . . . . Highest Corruption 2 | . . . . . 2 Average Corruption 1 | . . . . . 1 Corruption Purged . | . . . . . . Overload Shots . | . . . . . . Overflow Damage . | . . . . . . Projectiles . | . . . . . . Explosions . | . . . . . . Melee . | . . . . . . Knockbacks 1 | . . . . . 1 Impact 1 | . . . . . 1 Kinetic . | . . . . . . Secondary . | . . . . . . Self-Inflicted Damage 35 | . 23 . . . 12 Shots 1 | . 1 . . . . Rammed 10 | . . . . . 10 Targets Rammed 10 | . . . . . 10 Kicked . | . . . . . . Crushed . | . . . . . . Highest Temperature 252 | . 168 . 174 252 4 Average Temperature 74 | . 60 . 89 82 1 Received Heat Transfer 172 | . 66 . . 26 80 Siege Activations . | . . . . . . Robots Corrupted . | . . . . . . Combat Hostiles . | . . . . . . Parts Fried 1 | . 1 . . . . Impact Corruptions . | . . . . . . Robots Melted . | . . . . . . Combat Hostiles . | . . . . . . Parts Melted . | . . . . . . Heat Transferred 619 | . 175 . 333 111 . Parts Sabotaged . | . . . . . . Parts Stolen . | . . . . . . Parts Stripped . | . . . . . . Power Chain Reactions 1 | . 1 . . . . Missiles Intercepted . | . . . . . . Alert | -11 -10 -10 -9 -9 -9 ------- Run | Scr Mat Min Mat Min Exi Peak Influence 461 | 35 78 161 461 213 . Average Influence 145 | 12 51 105 293 189 . Maximum Alert Level 2 | . . . 2 1 . Low Security (%) 72 | 100 100 100 18 58 . Level 1 25 | . . . 75 41 . Level 2 1 | . . . 5 . . Level 3 . | . . . . . . Level 4 . | . . . . . . Level 5 . | . . . . . . High Security . | . . . . . . Max Security . | . . . . . . Squads Dispatched 3 | . . 1 2 . . Investigation 2 | . . 1 1 . . Extermination . | . . . . . . Reinforcement 1 | . . . 1 . . Assault . | . . . . . . Garrison . | . . . . . . Intercept . | . . . . . . Construction Impeded . | . . . . . . Haulers Reinforced . | . . . . . . Stealth | -11 -10 -10 -9 -9 -9 --------- Run | Scr Mat Min Mat Min Exi Distress Signals 2 | . . . 1 1 . Communications Jammed . | . . . . . . Distress Signals . | . . . . . . Times Spotted 49 | . 5 3 12 21 8 Peak Tracking Total 12 | . 2 3 4 12 9 Tactical Retreats 5 | . . . . 5 . Traps | -11 -10 -10 -9 -9 -9 ------- Run | Scr Mat Min Mat Min Exi Traps Triggered . | . . . . . . Indirectly . | . . . . . . Trap Hack Attempts . | . . . . . . Triggered . | . . . . . . Disarmed . | . . . . . . Reprogrammed . | . . . . . . Reused . | . . . . . . Traps Extracted . | . . . . . . Installed . | . . . . . . Triggered . | . . . . . . Machines | -11 -10 -10 -9 -9 -9 ---------- Run | Scr Mat Min Mat Min Exi Machines Disabled 1 | . . . 1 . . Max in Single Turn 1 | . . . 1 . . Machines Sabotaged . | . . . . . . Garrisons Compromised . | . . . . . . Overloaded Fab Kills . | . . . . . . Fab Network Shutdowns . | . . . . . . Hacking | -11 -10 -10 -9 -9 -9 --------- Run | Scr Mat Min Mat Min Exi Machines Accessed 12 | . 1 1 8 1 1 Terminals 7 | . 1 . 6 . . Fabricators . | . . . . . . Repair Stations . | . . . . . . Recycling Units 1 | . . . 1 . . Scanalyzers 1 | . . . 1 . . Garrison Access . | . . . . . . Total Hacks 33 | . 4 1 26 1 1 Successful 26 | . 4 1 19 1 1 Failed 7 | . . . 7 . . Catastrophic . | . . . . . . Database Lockouts . | . . . . . . Manual 22 | . 4 . 17 . 1 Terminals 25 | . 4 . 21 . . Fabricators . | . . . . . . Repair Stations . | . . . . . . Recycling Units 1 | . . . 1 . . Scanalyzers 4 | . . . 4 . . Garrison Access . | . . . . . . Terminal Hacks 11 | . 1 1 7 1 1 Robot Analysis 1 | . . . 1 . . Prototype ID Bank 1 | . . . 1 . . Open Door 2 | . . 1 . 1 . Branch Access Points 1 | . . . 1 . . Security Status 1 | . . . 1 . . Patrol Status 1 | . 1 . . . . Hauler Manifests 1 | . . . 1 . . Zone Layout 2 | . . . 2 . . EX-Prototype ID Bank 1 | . . . . . 1 Fabricator Hacks . | . . . . . . Repair Station Hacks . | . . . . . . Recycling Unit Hacks . | . . . . . . Scanalyzer 4 | . . . 4 . . Insert Component 1 | . . . 1 . . Analyze 3 | . . . 3 . . Garrison Access Hacks . | . . . . . . Unauthorized Hacks 11 | . 3 . 8 . . Terminals 10 | . 3 . 7 . . Track 3 | . 1 . 2 . . Botnet 5 | . 1 . 4 . . Operators 2 | . 1 . 1 . . Fabricators . | . . . . . . Repair Stations . | . . . . . . Recycling Units 1 | . . . 1 . . Mask 1 | . . . 1 . . Scanalyzers . | . . . . . . Garrison Access . | . . . . . . Data Cores Recovered . | . . . . . . Used . | . . . . . . Hacking Detections 9 | . 1 . 8 . . Full Trace Events 1 | . . . 1 . . Feedback Events . | . . . . . . Feedback Blocked . | . . . . . . Robot Schematics Acquired . | . . . . . . Robots Built . | . . . . . . Matter . | . . . . . . Time . | . . . . . . Total Robot Build Rating . | . . . . . . Part Schematics Acquired 1 | . . . 1 . . Parts Built . | . . . . . . Matter . | . . . . . . Time . | . . . . . . Total Part Build Rating . | . . . . . . Parts Repaired . | . . . . . . Time . | . . . . . . Parts Recycled . | . . . . . . Recycled Matter . | . . . . . . Retrieved Matter . | . . . . . . Retrieved Components . | . . . . . . Parts Scanalyzed 1 | . . . 1 . . Part Schematics Acquired 1 | . . . 1 . . Parts Damaged . | . . . . . . Bothacking | -11 -10 -10 -9 -9 -9 ------------ Run | Scr Mat Min Mat Min Exi Used RIF Installer . | . . . . . . Robots Hacked . | . . . . . . Non-combat . | . . . . . . Combat . | . . . . . . Robot Hacks Applied . | . . . . . . Relay Couplers Released . | . . . . . . Robots Rewired . | . . . . . . Allies Hacked . | . . . . . . Hacks Repelled . | . . . . . . Allies | -11 -10 -10 -9 -9 -9 -------- Run | Scr Mat Min Mat Min Exi Total Allies 3 | . . 3 . . . Largest Group 3 | . . 3 3 . . Highest-Rated Group 40 | . . 40 40 . . Highest-Rated Ally 16 | . . 16 16 . . Total Orders . | . . . . . . Ally Attacks 38 | . . 9 29 . . Total Damage 387 | . . 106 281 . . Kills 8 | . . 2 6 . . Allies Corrupted . | . . . . . . Allies Melted . | . . . . . . Intel | -11 -10 -10 -9 -9 -9 ------- Run | Scr Mat Min Mat Min Exi Robot Analysis Total 1 | . . . 1 . . Derelict Logs Recovered 3 | . . 3 . . . Drone Launches . | . . . . . . Drone Recoveries . | . . . . . . Exploration | -11 -10 -10 -9 -9 -9 ------------- Run | Scr Mat Min Mat Min Exi Turns Passed 1392 | 169 205 377 318 206 117 Spaces Moved 1378 | 94 123 348 306 324 183 Core 16 | 6 . . 9 1 . Treads . | . . . . . . Legs 159 | 88 71 . . . . Wheels 400 | . 52 348 . . . Hover . | . . . . . . Flight 803 | . . . 297 323 183 Fastest Speed 31 | 50 90 90 31 31 31 Average Speed 60 | 115 107 90 37 31 32 Slowest Speed 250 | 120 120 90 250 250 114 Overloaded Moves . | . . . . . . Propulsion Burnouts . | . . . . . . Robots Hopped 14 | . . . 2 12 . Cave-ins Triggered . | . . . . . . Exploration Rate (%) 43 | 5 16 80 39 79 40 Regions Visited 5 Branch Regions 3 Pre-discovered Areas 2 | . . 2 . . . Known Exits Taken 1 | . . . 1 . . Unknown Exits Taken 4 | 1 1 1 . 1 . Scrap Searched 4 | . . 3 . 1 . Spaces Dug 6 | . . . 6 . . Terrain Destroyed 10 | . 4 . 6 . . Melee 6 | . . . 6 . . Projectile . | . . . . . . AOE 4 | . 4 . . . . Actions | -11 -10 -10 -9 -9 -9 --------- Run | Scr Mat Min Mat Min Exi Total 1759 | 119 173 400 428 402 237 Wait 217 | . 19 31 50 76 41 Move 1346 | 93 122 347 301 300 183 Hop 13 | . . . 2 11 . Pick Up 20 | 3 7 2 6 2 . Fast Attach 13 | 6 2 4 1 . . Attach 13 | . 4 . 5 2 2 Detach 3 | . 1 . 1 1 . Swap 12 | 1 1 2 7 1 . Drop 20 | . 5 7 6 2 . Fire 53 | 16 12 7 11 7 . Melee 39 | . . . 38 . 1 Ram 10 | . . . . . 10 Kick . | . . . . . . Crush . | . . . . . . Escape Stasis . | . . . . . . Rewire . | . . . . . . Trap . | . . . . . . Miscellaneous . | . . . . . . Route ------- -11/Scrapyard -10/Materials -10/Mines -9/Materials (discovered 2 exits: [*Mat] / *Min) -9/Mines (discovered 3 exits: [*Mat x2] / *Exi) -9/Exiles History --------- Turn | Location | Event 24 | -11/Scrapyard | Discovered new exit (range 16) 170 | -11/Scrapyard | Entered Materials 308 | -10/Materials | Discovered new exit (range 9) 330 | -10/Materials | Build established: Mutant 339 | -10/Materials | Lost 3 parts (2n1w) 375 | -10/Materials | Entered Mines 467 | -10/Mines | Learned location of Storage (-7) 524 | -10/Mines | Met a Derelict shopkeep closing up shop 559 | -10/Mines | Assisted by bots powering up and referring to "LRC-V3" 702 | -10/Mines | Learned Materials trap positions 729 | -10/Mines | Discovered new exit (range 9) 752 | -10/Mines | Entered Materials 752 | -9/Materials | Accompanied by 3 allies 752 | -9/Materials | Evolved 2 slots: Propulsion x2 753 | -9/Materials | Loaded intel: 20 trap records 864 | -9/Materials | Identified exit to Mines 893 | -9/Materials | Discovered new exit (range 10) 1070 | -9/Materials | Entered Mines 1071 | -9/Mines | Assembled infested the area 1157 | -9/Mines | Discovered new exit (range 8) 1199 | -9/Mines | Met a Derelict who couldn't figure out how to use a Trap Extractor 1260 | -9/Mines | Discovered new exit (range 9) 1275 | -9/Mines | Deemed a non-threat by the Exiles lab entrance 1275 | -9/Mines | Discovered new exit (range 5) 1276 | -9/Mines | Entered Exiles 1284 | -9/Exiles | Met 8R-AWN 1290 | -9/Exiles | Met EX-HEX 1298 | -9/Exiles | Met EX-BIN 1302 | -9/Exiles | Aligned with FarCom system 1303 | -9/Exiles | Given EX-Vault access code 1310 | -9/Exiles | Opened EX-Vault 1317 | -9/Exiles | Warned to stay clear of 0b10 Research branches 1374 | -9/Exiles | Attacked by the Exiles 1389 | -9/Exiles | Core integrity fell below 50% 1392 | -9/Exiles | Core integrity fell below 20% 1393 | -9/Exiles | Destroyed by as-37269 with Assembled Heavy Rifle Last Messages --------------- 01386_ Destabilizing: System corrupted (+1). 01387_ Sensor Array destroyed. 01387_ Sml. Storage Unit destroyed. 01387_ Slammed into 8R-AWN. 01388_ Penetrated by HV Slug. 01388_ HV Slug penetrates Wall. 01388_ Penetrated by HV Slug. 01388_ HV Slug penetrates Wall. 01388_ Slammed into 8R-AWN. 01390_ Penetrated by HV Slug. 01390_ HV Slug penetrates Machine. 01390_ Machine disabled. 01390_ HV Slug penetrates Wall. 01390_ Slammed into 8R-AWN. 01392_ Penetrated by HV Slug. 01392_ HV Slug penetrates Machine. 01392_ Penetrated by HV Slug. 01392_ HV Slug penetrates Machine. 01392_ Slammed into 8R-AWN. 01392_ Destabilizing: System corrupted (+1). Map ----- +----------------------------------------------------+ | """"#??????????????????????????????????????????? | | """#??????????????????????????????????????????? | | """#??????????????????????????????????????????? | | """#??????????????????????????????????????????? | | """#??????????????????????????????????????????? | | """#??????????????????????????????????????????? | | """"??????????????????????????????????????????? | | """#??????????????????????????????????????????? | | X" """???????????????????????????????????????????? | | "" ???????????????????????????????????????????? | | """"""#??????????????????????????????????????????? | | #######??????????????????????????????????????????? | | ?????????????????????????????????????????????????? | | ?????????????????????????????????????????????????? | | ?????????????????????????????????????????????????? | | ??###########????????????????????????????????????? | | ###"""""""""##???????????????????????????????????? | | " """ """"##?????????????????????????????????#? | | "" " #????????????????????????????????# | | " """#???????????????????????????????? | | " "#???????????#####???????????????# | | " "##?????????##" #??????????????## | | ""###???????#" #?????????????## | | """#??????## ##????????????# | | "#????###g ####???????### | | ##???# a@a%% ;######### | | " ##?## %%a*% ; "## # | | "" ### a * # | | ## * | | " a #### | | a " #?#"""""#### | | a #" ";#?#######??#### * | | #######?????????????##### | | ##???????????????????????### | | " ##??????????????????????????### | | """ ""#?????????????????????????????## | | " " ""#" "##??????????????????????????????# | | """ """##"""""""##???????????????????????????????# | | ##"""???#########????????????????????????????????? | | ?##??????????????????????????????????????????????? | | ?????????????????????????????????????????????????? | | ?????????????????????????????????????????????????? | | ?????????????????????????????????????????????????? | | ?????????????????????????????????????????????????? | | ?????????????????????????????????????????????????? | | ?????????????????????????????????????????????????? | | ?????????????????????????????????????????????????? | | ?????????????????????????????????????????????????? | | ?????????????????????????????????????????????????? | | ?????????????????????????????????????????????????? | +----------------------------------------------------+ Best States ------------- Heat Dissipation 28 Energy Generation 14 Energy Capacity 265 Matter Stores 300 Matter Capacity 300 Sight Range 16 Robot Scan Range 10 Terrain Scan Density 10 Weapon Shielding 66 Evasion (%) 63 Item Schematics ----------------- VTOL Module | -9/Materials | Scanalyzed Robot Schematics ------------------ None Fabricated ------------ Nothing Alien Tech Used ----------------- None Achievements -------------- None Challenges ------------ None Game ------ Seed FocalInsulatedDissipator Manual? 0 Play Time 00:31:03 Cumulative 44.9 hours Start 2020.05.19 @ 09:57:00 End 2020.05.19 @ 10:27:43 Sessions 1 Manual Loads 0 Difficulty Rogue Special Mode None Game No. 25 Rogue 25 Adventurer 0 Explorer 0 Win Type - Total 3 Types 2/0/0/1/0/0/0 Lore% 50 Gallery% 50 Achievement% 45 Wizard Run 0 Options --------- ASCII 1 Keyboard 0 Movement Numpad Keybinds 0 Fullscreen 1 Font 18/SmallcapsGlow Map View 76x50 Tactical HUD 1 Map Filters NONE Filters NONE Steam 1 RUN: af209216-2f90-46d9-b09e-3a43d7098124